fUSD/lending_fUSD_20240513
["ID","MTS","AMOUNT","RATE_DAILY","PERIOD"]
[326918454,1715580891767,874.61,0.00010994,2]
[326918455,1715580908251,1000.0,0.00025,120]
[326918456,1715580919025,456.92,0.00011004,2]
[326918457,1715581038456,23900.0,0.00011023,2]
[326918467,1715581096841,-557.18751583,0.00011492,2]
[326918468,1715581096871,-4593.76073509,0.00011497,2]
[326918469,1715581096896,-150.0,0.00011497,2]
[326918470,1715581096921,-20286.63443243,0.00011498,2]
[326918471,1715581096946,-10412.41731665,0.000115,2]
[326918472,1715581110905,160.22,0.00011129,2]
[326918473,1715581111139,160.22,0.00011274,2]
[326918474,1715581137139,336.07,0.00011013,2]
[326918475,1715581160253,500.0,0.00011014,2]
[326918476,1715581301060,3417.13156694,0.0001127,2]
[326918477,1715581339680,250.0,0.00011117,2]
[326918478,1715581371440,11854.66,0.00011096,2]
[326918479,1715581394766,910.78,0.00011099,2]
[326918480,1715581407783,2000.0,0.00025,120]
[326918481,1715581428147,935.5,0.00011097,2]
[326918482,1715581443413,634.46,0.00011097,2]
[326918483,1715581619706,160.22,0.00011168,2]
[326918484,1715581628358,200.0,0.00011092,2]
[326918485,1715581648435,6352.54,0.00011113,2]
[326918486,1715581648464,17547.46,0.00011113,2]
[326918487,1715581709102,4009.38,0.00011037,2]
[326918488,1715581726419,8841.25045726,0.00011359,2]
[326918490,1715581747508,161.01708695,0.00011388,2]
[326918491,1715581747664,314.4633,0.00011319,2]
[326918498,1715581832959,-160.22,0.00011459,2]
[326918499,1715581832968,-110.04587227,0.00011485,2]
[326918500,1715581832980,-2896.39961482,0.00011485,2]
[326918501,1715581832990,-1213.49699776,0.00011486,2]
[326918502,1715581833000,-3000.0,0.0001149,2]
[326918503,1715581833009,-18628.49441535,0.000115,2]
[326918504,1715581833019,-951.91575048,0.000115,2]
[326918505,1715581833029,-10357.3323457,0.00011508,2]
[326918506,1715581833039,-6362.92993457,0.00011508,2]
[326918507,1715581833049,-161.01708695,0.00011508,2]
[326918508,1715581833058,-1000.0,0.00011508,2]
[326918509,1715581833068,-2203.435,0.00011508,2]
[326918510,1715581833078,-911.2794,0.00011508,2]
[326918511,1715581833088,-1000.0,0.00011508,2]
[326918512,1715581833099,-256.7028,0.00011508,2]
[326918513,1715581833109,-2500.0,0.00011508,2]
[326918514,1715581833119,-1801.31279863,0.0001153,2]
[326918523,1715581833310,-370.3359542,0.0001153,2]
[326918525,1715581833321,-274.51104862,0.0001153,2]
[326918576,1715581837807,-553.84019855,0.0001153,2]
[326918577,1715581837817,-157.57311098,0.00011583,2]
[326918578,1715581837828,-160.99,0.00011598,2]
[326918579,1715581837837,-499.99,0.00011598,2]
[326918580,1715581837848,-179.67754222,0.00011608,2]
[326918581,1715581837860,-28.19242851,0.00011608,2]
[326918582,1715581837870,-3765.793835,0.00011608,2]
[326918583,1715581837948,-2098.31796578,0.00011608,2]
[326918584,1715581837957,-199376.07733438,0.00011609,2]
[326918585,1715581837968,-2986.13353,0.00011609,2]
[326918586,1715581837981,-995.02138541,0.00011609,2]
[326918587,1715581838087,-617.0,0.00011609,2]
[326918588,1715581838119,-86924.01977011,0.00011609,2]
[326918594,1715581840096,-4993.44807557,0.00011608,2]
[326918595,1715581840106,-81525.28115186,0.00011609,2]
[326918596,1715581840116,-680.25,0.00011609,2]
[326918597,1715581840125,-1173.42935213,0.00011636,2]
[326918598,1715581840135,-150.99,0.00011636,2]
[326918599,1715581840144,-150.99,0.00011636,2]
[326918600,1715581840153,-3000.0,0.000117,2]
[326918601,1715581840162,-160.22,0.0001175,2]
[326918602,1715581840172,-800.0,0.00011863,2]
[326918603,1715581840181,-800.0,0.00011863,2]
[326918604,1715581840191,-500.0,0.0001188,2]
[326918605,1715581840200,-500.0,0.0001188,2]
[326918606,1715581840210,-500.0,0.0001188,2]
[326918607,1715581840219,-500.0,0.0001188,2]
[326918608,1715581840229,-500.0,0.0001188,2]
[326918609,1715581840238,-500.0,0.0001188,2]
[326918610,1715581840247,-500.0,0.0001188,2]
[326918611,1715581840259,-500.0,0.0001188,2]
[326918612,1715581840268,-500.0,0.0001188,2]
[326918613,1715581840279,-500.0,0.0001188,2]
[326918614,1715581840288,-478.57,0.0001188,2]
[326918615,1715581840297,-500.0,0.0001188,2]
[326918616,1715581840306,-500.0,0.0001188,2]
[326918617,1715581840316,-500.0,0.0001188,2]
[326918618,1715581840325,-500.0,0.0001188,2]
[326918619,1715581840334,-500.0,0.0001188,2]
[326918620,1715581840343,-500.0,0.0001188,2]
[326918621,1715581840353,-500.0,0.0001188,2]
[326918622,1715581840362,-500.0,0.0001188,2]
[326918623,1715581840371,-500.0,0.0001188,2]
[326918624,1715581840380,-500.0,0.0001188,2]
[326918625,1715581840389,-500.0,0.0001188,2]
[326918626,1715581840399,-500.0,0.0001188,2]
[326918627,1715581840408,-500.0,0.0001188,2]
[326918628,1715581840417,-500.0,0.0001188,2]
[326918629,1715581840427,-521.89,0.0001188,2]
[326918630,1715581840436,-500.0,0.0001188,2]
[326918631,1715581840445,-500.0,0.0001188,2]
[326918632,1715581840454,-500.0,0.0001188,2]
[326918633,1715581840464,-500.0,0.0001188,2]
[326918634,1715581840473,-500.0,0.0001188,2]
[326918635,1715581840482,-500.0,0.0001188,2]
[326918636,1715581840492,-500.0,0.0001188,2]
[326918637,1715581840501,-500.0,0.0001188,2]
[326918638,1715581840510,-500.0,0.0001188,2]
[326918639,1715581840520,-500.0,0.0001188,2]
[326918640,1715581840529,-500.0,0.0001188,2]
[326918641,1715581840539,-500.0,0.0001188,2]
[326918642,1715581840548,-500.0,0.0001188,2]
[326918643,1715581840557,-500.0,0.0001188,2]
[326918644,1715581840566,-500.0,0.0001188,2]
[326918645,1715581840575,-500.0,0.0001188,2]
[326918646,1715581840584,-500.0,0.0001188,2]
[326918647,1715581840594,-500.0,0.0001188,2]
[326918648,1715581840603,-500.0,0.0001188,2]
[326918649,1715581840612,-500.0,0.0001188,2]
[326918650,1715581840622,-500.0,0.0001188,2]
[326918651,1715581840631,-500.0,0.0001188,2]
[326918652,1715581840640,-500.0,0.0001188,2]
[326918653,1715581840650,-500.0,0.0001188,2]
[326918654,1715581840659,-500.0,0.0001188,2]
[326918655,1715581840668,-500.0,0.0001188,2]
[326918656,1715581840678,-500.0,0.0001188,2]
[326918657,1715581840687,-500.0,0.0001188,2]
[326918658,1715581840696,-500.0,0.0001188,2]
[326918659,1715581840705,-500.0,0.0001188,2]
[326918660,1715581840715,-500.0,0.0001188,2]
[326918661,1715581840724,-500.0,0.0001188,2]
[326918662,1715581840733,-500.0,0.0001188,2]
[326918663,1715581840742,-500.0,0.0001188,2]
[326918664,1715581840752,-500.0,0.0001188,2]
[326918665,1715581840762,-500.0,0.0001188,2]
[326918666,1715581840773,-507.01,0.0001188,2]
[326918667,1715581840784,-150.0,0.00011978,2]
[326918668,1715581840794,-14805.0,0.00012,2]
[326918669,1715581840804,-10139.0,0.00012,2]
[326918670,1715581840814,-2005.723291,0.00012,2]
[326918671,1715581840824,-868.43,0.00012,2]
[326918672,1715581840834,-685.11,0.00012,2]
[326918673,1715581840843,-150.0,0.00012,2]
[326918674,1715581840856,-300.0,0.00012,2]
[326918675,1715581840866,-1596.84,0.00012,2]
[326918676,1715581840875,-414.79,0.00012,2]
[326918677,1715581840885,-300.0,0.00012,2]
[326918678,1715581840894,-5000.0,0.00012,2]
[326918679,1715581840903,-522.31,0.00012,2]
[326918680,1715581840912,-500.0,0.00012,2]
[326918681,1715581840921,-457.39909841,0.00012,2]
[326918682,1715581840930,-150.0,0.00012004,2]
[326918683,1715581840940,-19619.11365683,0.00012009,2]
[326918684,1715581840949,-150.0,0.0001201,2]
[326918685,1715581840959,-3000.0,0.0001201,2]
[326918686,1715581840968,-160.99,0.00012026,2]
[326918687,1715581840978,-150.0,0.00012027,2]
[326918688,1715581840989,-10000.0,0.00012036,2]
[326918689,1715581840998,-150.0,0.00012047,2]
[326918690,1715581841008,-150.0,0.00012058,2]
[326918691,1715581841017,-150.0,0.00012071,2]
[326918692,1715581841026,-150.0,0.00012091,2]
[326918693,1715581841036,-151.4,0.000121,2]
[326918694,1715581841045,-534.96,0.000121,2]
[326918695,1715581841055,-3072.35272229,0.00012126,2]
[326918696,1715581841066,-150.0,0.00012141,2]
[326918697,1715581841075,-6043.43181217,0.0001215,2]
[326918698,1715581841084,-192.05470356,0.0001215,2]
[326918699,1715581841094,-4038.121,0.0001215,2]
[326918700,1715581841103,-172.39377148,0.00012157,2]
[326918701,1715581841112,-203.41962116,0.00012157,2]
[326918702,1715581841121,-150.0,0.00012159,2]
[326918703,1715581841130,-150.0,0.00012165,2]
[326918704,1715581841140,-150.0,0.00012169,2]
[326918705,1715581841149,-150.0,0.00012187,2]
[326918706,1715581841159,-150.0,0.00012199,2]
[326918707,1715581841168,-150.0,0.00012213,2]
[326918708,1715581841177,-6043.43181216,0.00012216,2]
[326918709,1715581841187,-987.19908097,0.00012237,2]
[326918710,1715581841196,-150.0,0.0001224,2]
[326918711,1715581841205,-160.99,0.0001224,2]
[326918712,1715581841214,-154.6568369,0.0001224,2]
[326918713,1715581841223,-427.98536419,0.00012242,2]
[326918714,1715581841233,-207.17256555,0.00012246,2]
[326918715,1715581841242,-155.49269368,0.00012248,2]
[326918716,1715581841252,-155.19355305,0.00012248,2]
[326918717,1715581841261,-523.81377357,0.00012248,2]
[326918718,1715581841270,-1246.5444,0.00012248,2]
[326918719,1715581841279,-268.0359419,0.00012248,2]
[326918720,1715581841288,-3281.56419494,0.00012248,2]
[326918721,1715581841298,-1623.84550739,0.00012249,2]
[326918722,1715581841307,-168.08036328,0.00012249,2]
[326918723,1715581841316,-1058.0,0.0001225,2]
[326918724,1715581841325,-319789.80567137,0.0001225,5]
[326918725,1715581841338,-174510.19432764,0.0001225,5]
[326918726,1715581841348,-388.092027,0.00012257,2]
[326918727,1715581841357,-160.99,0.0001227,2]
[326918728,1715581841367,-160.99,0.0001227,2]
[326918729,1715581841376,-160.99,0.0001227,2]
[326918730,1715581841386,-172.02,0.00012278,2]
[326918731,1715581841395,-670206.37061156,0.0001228,2]
[326918732,1715581841412,-6043.43181216,0.00012283,2]
[326918733,1715581841421,-203.41962114,0.00012318,2]
[326918734,1715581841430,-3000.0,0.0001233,2]
[326918735,1715581841440,-6043.43181216,0.00012349,2]
[326918736,1715581841449,-456.92,0.0001238,2]
[326918737,1715581841459,-336.07,0.0001239,2]
[326918738,1715581841468,-388.092027,0.0001241,2]
[326918739,1715581841477,-6043.43181216,0.00012415,2]
[326918740,1715581841487,-203.41962114,0.00012479,2]
[326918741,1715581841495,-6043.43181216,0.00012482,2]
[326918742,1715581841505,-634.46,0.00012484,2]
[326918743,1715581841516,-155.0,0.000125,2]
[326918744,1715581841527,-1000.0,0.000125,2]
[326918745,1715581841538,-1000.0,0.000125,2]
[326918746,1715581841549,-855.098,0.00012524,2]
[326918747,1715581841559,-215.0,0.00012524,2]
[326918748,1715581841568,-1138.0,0.00012524,2]
[326918749,1715581841579,-156.0,0.00012524,2]
[326918750,1715581841588,-444.069,0.00012524,2]
[326918751,1715581841597,-5910.0,0.00012524,2]
[326918752,1715581841607,-5748.0,0.00012524,2]
[326918753,1715581841618,-37824.0,0.00012524,2]
[326918754,1715581841628,-335.885,0.00012524,2]
[326918755,1715581841637,-543.0,0.00012524,2]
[326918756,1715581841647,-3711.306,0.00012537,2]
[326918757,1715581841657,-3651.018,0.00012539,2]
[326918758,1715581841666,-3630.298,0.00012539,2]
[326918759,1715581841675,-3632.466,0.0001254,2]
[326918760,1715581841684,-6043.43181216,0.00012548,2]
[326918761,1715581841694,-500.0,0.00012559,2]
[326918762,1715581841703,-500.0,0.0001256,2]
[326918763,1715581841712,-500.0,0.0001256,2]
[326918764,1715581841722,-388.092027,0.00012563,2]
[326918765,1715581841731,-672.0,0.000126,2]
[326918766,1715581841740,-773.0,0.000126,2]
[326918767,1715581841750,-6043.43181216,0.00012615,2]
[326918768,1715581841760,-203.41962114,0.00012639,2]
[326918769,1715581841771,-3000.0,0.0001264,2]
[326918770,1715581841783,-3743.175,0.00012658,2]
[326918771,1715581841793,-3527.91084963,0.00012661,2]
[326918772,1715581841803,-207.143,0.00012661,2]
[326918773,1715581841813,-204.0,0.00012661,2]
[326918774,1715581841823,-6043.43181216,0.00012681,2]
[326918775,1715581841832,-10000.0,0.000127,2]
[326918776,1715581841841,-859.74532419,0.000127,2]
[326918777,1715581841851,-218.08366346,0.000127,2]
[326918778,1715581841861,-183.712197,0.00012716,2]
[326918779,1715581841871,-151.0,0.00012716,2]
[326918780,1715581841881,-151.0,0.00012716,2]
[326918781,1715581841890,-151.0,0.00012716,2]
[326918782,1715581841899,-151.0,0.00012716,2]
[326918783,1715581841909,-174.526587,0.00012716,2]
[326918784,1715581841918,-174.526587,0.00012716,2]
[326918785,1715581841927,-151.0,0.00012716,2]
[326918786,1715581841936,-151.0,0.00012716,2]
[326918787,1715581841945,-151.0,0.00012716,2]
[326918788,1715581841955,-151.0,0.00012716,2]
[326918789,1715581841964,-273.458729,0.00012716,2]
[326918790,1715581841974,-151.0,0.00012716,2]
[326918791,1715581841983,-216.903736,0.00012716,2]
[326918792,1715581841992,-273.458729,0.00012716,2]
[326918793,1715581842003,-1232.657214,0.00012716,2]
[326918794,1715581842011,-151.0,0.00012716,2]
[326918795,1715581842020,-151.0,0.00012716,2]
[326918796,1715581842029,-151.0,0.00012716,2]
[326918797,1715581842038,-151.0,0.00012716,2]
[326918798,1715581842047,-151.0,0.00012716,2]
[326918799,1715581842055,-152.564032,0.00012716,2]
[326918800,1715581842065,-163.05514,0.00012716,2]
[326918801,1715581842074,-151.0,0.00012716,2]
[326918802,1715581842083,-163.05514,0.00012716,2]
[326918803,1715581842092,-151.0,0.00012716,2]
[326918804,1715581842102,-151.0,0.00012716,2]
[326918805,1715581842111,-151.0,0.00012716,2]
[326918806,1715581842120,-151.0,0.00012716,2]
[326918807,1715581842129,-151.0,0.00012716,2]
[326918808,1715581842138,-151.0,0.00012716,2]
[326918809,1715581842147,-151.0,0.00012716,2]
[326918810,1715581842156,-152.679958,0.00012716,2]
[326918811,1715581842165,-151.0,0.00012716,2]
[326918812,1715581842174,-151.0,0.00012716,2]
[326918813,1715581842184,-151.0,0.00012716,2]
[326918814,1715581842194,-151.0,0.00012716,2]
[326918815,1715581842204,-151.0,0.00012716,2]
[326918816,1715581842213,-151.0,0.00012716,2]
[326918817,1715581842223,-151.0,0.00012716,2]
[326918818,1715581842232,-232.933082,0.00012716,2]
[326918819,1715581842245,-151.0,0.00012716,2]
[326918820,1715581842255,-151.0,0.00012716,2]
[326918821,1715581842264,-153.384301,0.00012716,2]
[326918822,1715581842273,-151.672805,0.00012716,2]
[326918823,1715581842283,-472.958637,0.00012716,2]
[326918824,1715581842292,-151.0,0.00012716,2]
[326918825,1715581842301,-472.958637,0.00012716,2]
[326918826,1715581842310,-155.133706,0.00012716,2]
[326918827,1715581842319,-158.525731,0.00012716,2]
[326918828,1715581842329,-151.0,0.00012716,2]
[326918829,1715581842338,-214.884399,0.00012716,2]
[326918830,1715581842347,-151.0,0.00012716,2]
[326918831,1715581842356,-151.0,0.00012716,2]
[326918832,1715581842365,-2044.421723,0.00012716,2]
[326918833,1715581842374,-2044.421723,0.00012716,2]
[326918834,1715581842384,-151.0,0.00012716,2]
[326918835,1715581842394,-311.82186,0.00012716,2]
[326918836,1715581842403,-311.82186,0.00012716,2]
[326918837,1715581842413,-151.0,0.00012716,2]
[326918838,1715581842422,-154.436216,0.00012716,2]
[326918839,1715581842431,-151.0,0.00012716,2]
[326918840,1715581842441,-151.0,0.00012716,2]
[326918841,1715581842450,-151.0,0.00012716,2]
[326918842,1715581842459,-151.0,0.00012716,2]
[326918843,1715581842469,-151.0,0.00012716,2]
[326918844,1715581842478,-253.640917,0.00012716,2]
[326918845,1715581842487,-253.640917,0.00012716,2]
[326918846,1715581842496,-151.0,0.00012716,2]
[326918847,1715581842506,-151.0,0.00012716,2]
[326918848,1715581842515,-151.0,0.00012716,2]
[326918849,1715581842525,-151.0,0.00012716,2]
[326918850,1715581842535,-151.0,0.00012716,2]
[326918851,1715581842543,-155.209002,0.00012716,2]
[326918852,1715581842553,-562.260052,0.00012716,2]
[326918853,1715581842562,-562.260052,0.00012716,2]
[326918854,1715581842571,-151.0,0.00012716,2]
[326918855,1715581842580,-1023.596394,0.00012716,2]
[326918856,1715581842590,-151.0,0.00012716,2]
[326918857,1715581842599,-1023.596394,0.00012716,2]
[326918858,1715581842607,-151.0,0.00012716,2]
[326918859,1715581842617,-151.0,0.00012716,2]
[326918860,1715581842625,-151.0,0.00012716,2]
[326918861,1715581842635,-162.875348,0.00012716,2]
[326918862,1715581842645,-151.0,0.00012716,2]
[326918863,1715581842654,-209.079178,0.00012716,2]
[326918864,1715581842663,-209.079178,0.00012716,2]
[326918865,1715581842672,-388.092027,0.00012717,2]
[326918866,1715581842680,-150.0,0.00012717,2]
[326918867,1715581842690,-500.0,0.00012732,2]
[326918868,1715581842699,-500.0,0.0001274,2]
[326918869,1715581842708,-6043.43181216,0.00012747,2]
[326918870,1715581842717,-500.0,0.00012749,2]
[326918871,1715581842726,-3663.2722979,0.0001275,2]
[326918873,1715581842735,-859.74532419,0.0001275,2]
[326918875,1715581842744,-218.08366345,0.0001275,2]
[326918894,1715581842943,-500.0,0.00012758,2]
[326918896,1715581842953,-500.0,0.00012767,2]
[326918897,1715581842962,-3064.0,0.00012767,2]
[326918898,1715581842971,-3243.0,0.00012767,2]
[326918899,1715581842980,-160.99,0.0001277,2]
[326918900,1715581842989,-500.0,0.00012776,2]
[326918901,1715581842998,-500.0,0.00012776,2]
[326918902,1715581843008,-3672.856,0.0001278,2]
[326918903,1715581843017,-15411.29469498,0.0001278,2]
[326918904,1715581843045,-292.40274758,0.0001278,2]
[326918905,1715581843056,-404.24487,0.0001278,2]
[326918906,1715581843068,-10543.98652399,0.0001278,2]
[326918907,1715581843079,-12312.80267959,0.0001278,2]
[326918908,1715581843095,-715.41030117,0.0001278,2]
[326918909,1715581843106,-652.13429658,0.0001278,2]
[326918910,1715581843117,-488.306553,0.0001278,2]
[326918911,1715581843128,-289.41499999,0.0001278,2]
[326918912,1715581843297,-152.76407664,0.00011508,2]
[326918913,1715581843307,-10000.0,0.00011816,2]
[326918914,1715581843316,-1063.256,0.00012524,2]
[326918915,1715581843325,-9805.25341443,0.0001278,2]
[326918916,1715581843337,-366.77400768,0.0001278,2]
[326918917,1715581843361,-1989.75446725,0.0001278,2]
[326918918,1715581843375,-9330.45386171,0.0001278,2]
[326918919,1715581843391,-1427.58057625,0.0001278,2]
[326918920,1715581843403,-227725.46413088,0.0001278,2]
[326918921,1715581843413,-153.237585,0.0001278,2]
[326918922,1715581843425,-151.310856,0.0001278,2]
[326918923,1715581843436,-154.839553,0.0001278,2]
[326918924,1715581843447,-151.0,0.0001278,2]
[326918925,1715581843456,-241.326377,0.0001278,2]
[326918926,1715581843465,-151.0,0.0001278,2]
[326918927,1715581843475,-151.0,0.0001278,2]
[326918928,1715581843485,-184.52595,0.0001278,2]
[326918929,1715581843494,-174.526587,0.0001278,2]
[326918930,1715581843504,-174.526587,0.0001278,2]
[326918931,1715581843513,-151.0,0.0001278,2]
[326918932,1715581843522,-151.0,0.0001278,2]
[326918933,1715581843531,-273.458729,0.0001278,2]
[326918934,1715581843540,-151.0,0.0001278,2]
[326918935,1715581843549,-216.903736,0.0001278,2]
[326918936,1715581843558,-273.458729,0.0001278,2]
[326918937,1715581843568,-1232.657214,0.0001278,2]
[326918938,1715581843576,-151.0,0.0001278,2]
[326918939,1715581843585,-151.0,0.0001278,2]
[326918940,1715581843594,-151.0,0.0001278,2]
[326918941,1715581843603,-151.0,0.0001278,2]
[326918942,1715581843613,-151.0,0.0001278,2]
[326918943,1715581843621,-163.05514,0.0001278,2]
[326918944,1715581843631,-151.0,0.0001278,2]
[326918945,1715581843640,-163.05514,0.0001278,2]
[326918946,1715581843650,-151.0,0.0001278,2]
[326918947,1715581843659,-151.0,0.0001278,2]
[326918948,1715581843668,-151.0,0.0001278,2]
[326918949,1715581843678,-151.0,0.0001278,2]
[326918950,1715581843690,-151.0,0.0001278,2]
[326918951,1715581843700,-151.0,0.0001278,2]
[326918952,1715581843709,-151.0,0.0001278,2]
[326918953,1715581843718,-151.0,0.0001278,2]
[326918954,1715581843727,-423.397302,0.0001278,2]
[326918955,1715581843737,-423.397302,0.0001278,2]
[326918956,1715581843748,-151.0,0.0001278,2]
[326918957,1715581843757,-151.0,0.0001278,2]
[326918958,1715581843766,-151.0,0.0001278,2]
[326918959,1715581843779,-151.0,0.0001278,2]
[326918960,1715581843789,-153.879191,0.0001278,2]
[326918961,1715581843799,-151.0,0.0001278,2]
[326918962,1715581843810,-151.0,0.0001278,2]
[326918963,1715581843820,-151.0,0.0001278,2]
[326918964,1715581843830,-151.0,0.0001278,2]
[326918965,1715581843841,-151.0,0.0001278,2]
[326918966,1715581843853,-151.161536,0.0001278,2]
[326918967,1715581843863,-151.0,0.0001278,2]
[326918968,1715581843872,-151.0,0.0001278,2]
[326918969,1715581843883,-151.0,0.0001278,2]
[326918970,1715581843893,-151.0,0.0001278,2]
[326918971,1715581843902,-151.0,0.0001278,2]
[326918972,1715581843911,-152.024205,0.0001278,2]
[326918973,1715581843920,-151.0,0.0001278,2]
[326918974,1715581843930,-151.0,0.0001278,2]
[326918975,1715581843939,-151.0,0.0001278,2]
[326918976,1715581843948,-151.0,0.0001278,2]
[326918977,1715581843957,-151.800661,0.0001278,2]
[326918978,1715581843966,-151.0,0.0001278,2]
[326918979,1715581843975,-472.958637,0.0001278,2]
[326918980,1715581843984,-151.0,0.0001278,2]
[326918981,1715581843993,-472.958637,0.0001278,2]
[326918982,1715581844004,-151.0,0.0001278,2]
[326918983,1715581844012,-153.452786,0.0001278,2]
[326918984,1715581844021,-151.0,0.0001278,2]
[326918985,1715581844031,-2044.421723,0.0001278,2]
[326918986,1715581844040,-2044.421723,0.0001278,2]
[326918987,1715581844050,-311.82186,0.0001278,2]
[326918988,1715581844060,-311.82186,0.0001278,2]
[326918989,1715581844070,-151.0,0.0001278,2]
[326918990,1715581844080,-151.0,0.0001278,2]
[326918991,1715581844089,-151.0,0.0001278,2]
[326918992,1715581844100,-151.0,0.0001278,2]
[326918993,1715581844111,-151.0,0.0001278,2]
[326918994,1715581844120,-151.0,0.0001278,2]
[326918995,1715581844130,-253.640917,0.0001278,2]
[326918996,1715581844139,-253.640917,0.0001278,2]
[326918997,1715581844148,-151.0,0.0001278,2]
[326918998,1715581844157,-151.0,0.0001278,2]
[326918999,1715581844166,-151.0,0.0001278,2]
[326919000,1715581844177,-151.0,0.0001278,2]
[326919001,1715581844186,-151.0,0.0001278,2]
[326919002,1715581844195,-562.260052,0.0001278,2]
[326919003,1715581844204,-562.260052,0.0001278,2]
[326919004,1715581844213,-151.0,0.0001278,2]
[326919005,1715581844222,-1023.596394,0.0001278,2]
[326919006,1715581844233,-153.234941,0.0001278,2]
[326919007,1715581844243,-1023.596394,0.0001278,2]
[326919008,1715581844252,-151.0,0.0001278,2]
[326919009,1715581844262,-151.0,0.0001278,2]
[326919010,1715581844271,-151.0,0.0001278,2]
[326919011,1715581844279,-151.0,0.0001278,2]
[326919012,1715581844289,-209.079178,0.0001278,2]
[326919013,1715581844300,-209.079178,0.0001278,2]
[326919014,1715581844309,-500.0,0.00012784,2]
[326919015,1715581844320,-500.0,0.00012784,2]
[326919016,1715581844329,-152.7,0.0001279,2]
[326919017,1715581844338,-154.6568369,0.0001279,2]
[326919018,1715581844347,-500.0,0.00012793,2]
[326919019,1715581844356,-500.0,0.00012793,2]
[326919020,1715581844366,-150.0,0.00012795,2]
[326919021,1715581844374,-150.0,0.00012795,2]
[326919022,1715581844383,-150.0,0.00012795,2]
[326919023,1715581844392,-150.0,0.00012795,2]
[326919024,1715581844401,-150.0,0.00012795,2]
[326919025,1715581844412,-638.09565663,0.00012798,2]
[326919026,1715581844423,-542.23618842,0.00012798,2]
[326919027,1715581844433,-284.98562185,0.00012798,2]
[326919028,1715581844443,-204.6723515,0.00012798,2]
[326919029,1715581844453,-293.06056207,0.00012798,2]
[326919030,1715581844463,-1137.94257999,0.00012798,2]
[326919031,1715581844473,-783.62102359,0.00012798,2]
[326919032,1715581844483,-236.47460547,0.00012799,2]
[326919033,1715581844494,-180213.23695661,0.000128,2]
[326919034,1715581844505,-476199.03618301,0.000128,2]
[326919035,1715581844518,-9145.8,0.000128,2]
[326919036,1715581846005,-176.99291808,0.00011608,2]
[326919037,1715581846014,-1447.5650549,0.00011608,2]
[326919038,1715581846024,-3492.16294007,0.00011816,2]
[326919039,1715581846033,-3482.41874354,0.000128,2]
[326919040,1715581846046,-871.94749866,0.000128,2]
[326919041,1715581846380,-2509.612195,0.000128,2]
[326919045,1715582060158,155.0,0.00011406,2]
[326919046,1715582072729,155.0,0.00011406,2]
[326919049,1715582099874,523.01232752,0.00011406,2]
[326919050,1715582102554,548.33711333,0.00011406,2]
[326919053,1715582116544,548.33711333,0.00011406,2]
[326919054,1715582132784,548.33711333,0.00011406,2]
[326919055,1715582152589,378.23177333,0.00011406,2]
[326919063,1715582546778,200.0,0.00011333,2]
[326919064,1715582550349,1213.49699776,0.00011406,2]
[326919065,1715582604384,500.0,0.0001139,2]
[326919066,1715582715691,500.0,0.00025,120]
[326919067,1715582750655,23900.0,0.00011317,2]
[326919077,1715582903139,-315.78,0.00011407,2]